bitfinex/quotes_SOLUSD_20251013
["timestamp","ask_amount","ask_price","bid_price","bid_amount"]
[1760320829061,20.8,199.96,199.9,17.50875437]
[1760320829285,8.60804971,199.95,199.9,5.00250125]
[1760320829453,21.47,199.96,199.84,9.27804971]
[1760320829454,0.67,199.94,199.84,9.27804971]
[1760320829649,8.60804971,199.94,199.88,8.60804971]
[1760320829849,9.27804971,199.94,199.88,8.60804971]
[1760320830073,20.8,199.96,199.9,8.60804971]
[1760320830372,8.60804971,199.95,199.89,0.67]
[1760320830574,8.60804971,199.94,199.88,19.48452492]
[1760320830757,21.47,199.97,199.88,19.48452492]
[1760320830954,8.60804971,199.95,199.89,8.60804971]
[1760320831151,21.47,199.97,199.9,8.60804971]
[1760320831358,20.8,199.97,199.92,5.0020008]
[1760320831559,8.60804971,199.98,199.92,14.28005051]
[1760320831867,8.60804971,199.96,199.92,5.0020008]
[1760320832047,9.27804971,199.95,199.88,8.60804971]
[1760320832247,8.60804971,199.94,199.88,5.0030018]
[1760320832478,8.60804971,199.92,199.86,5.00327436]
[1760320832665,20.8,199.95,199.84,8.60804971]
[1760320832850,8.60804971,199.92,199.85,8.60804971]
[1760320833057,0.67,199.91,199.84,5.00381862]
[1760320833260,8.60804971,199.9,199.84,5.00381862]
[1760320833459,8.60804971,199.9,199.83,36.99930694]
[1760320833675,10.68285158,200.0,199.87,10.87647521]
[1760320833885,8.60804971,199.93,199.85,10.87647521]
[1760320834380,8.60804971,199.93,199.84,0.67]
[1760320834381,8.60804971,199.9,199.84,9.27804971]
[1760320834568,8.60804971,199.91,199.84,9.27804971]
[1760320834758,8.60804971,199.91,199.84,0.67]
[1760320834954,8.60804971,199.91,199.84,9.27804971]
[1760320835155,8.60804971,199.91,199.83,17.51478202]
[1760320835156,21.47,199.96,199.87,8.60804971]
[1760320835480,0.67,199.98,199.89,10.87647521]
[1760320835670,0.1,199.99,199.93,8.60804971]
[1760320835875,8.60804971,199.95,199.88,26.11855601]
[1760320836053,0.1,199.99,199.93,8.60804971]
[1760320836789,0.1,199.99,199.94,8.60804971]
[1760320836969,8.60804971,199.98,199.91,8.60804971]
[1760320837288,0.1,199.99,199.94,5.00150045]
[1760320837667,8.70804971,199.99,199.94,17.50525157]
[1760320837864,8.60804971,199.97,199.94,5.00150045]
[1760320838356,0.1,199.99,199.94,5.00150045]
[1760320838562,8.70804971,199.99,199.94,5.67150045]
[1760320838801,0.1,199.99,199.94,18.17525157]
[1760320839488,9.27804971,199.98,199.94,5.00150045]
[1760320839794,0.8829452,200.03,199.98,10.87647521]
[1760320839966,9.27804971,200.1,200.02,8.60804971]
[1760320840175,8.60804971,200.09,199.99,10.87647521]
[1760320840372,4.99753898,200.1,199.95,10.87647521]
[1760320840373,8.60804971,200.06,199.95,10.87647521]
[1760320840689,8.60804971,200.04,199.97,8.60804971]
[1760320840870,8.60804971,200.02,199.95,8.60804971]
[1760320841314,8.60804971,200.0,199.94,17.50525157]
[1760320841599,20.8,200.04,199.72,24.0852358]
[1760320841600,8.70205755,200.04,199.95,10.87647521]
[1760320841769,8.60804971,200.02,199.95,8.60804971]
[1760320842294,0.09400784,200.04,199.93,8.60804971]
[1760320842295,8.60804971,200.0,199.93,8.60804971]
[1760320842475,0.67,200.01,199.95,8.60804971]
[1760320842797,9.27804971,200.01,199.94,8.60804971]
[1760320842978,8.60804971,199.98,199.91,8.60804971]
[1760320843183,20.8,200.02,199.95,8.60804971]
[1760320843369,0.67,200.03,199.97,8.60804971]
[1760320843670,0.67,200.03,199.99,8.60804971]
[1760320843868,0.67,200.03,199.97,8.60804971]
[1760320844395,0.67,200.03,199.96,17.5035007]
[1760320844396,8.60804971,200.02,199.96,17.5035007]
[1760320844990,9.27804971,200.02,199.96,17.5035007]
[1760320845171,8.60804971,200.0,199.96,5.0010002]
[1760320845376,0.67,199.99,199.96,5.0010002]
[1760320845696,8.60804971,199.97,199.91,5.00225101]
[1760320845871,12.59168982,200.04,199.91,5.00225101]
[1760320845872,9.27804971,199.96,199.91,5.00225101]
[1760320846070,9.27804971,199.95,199.91,5.00225101]
[1760320846768,0.67,199.94,199.91,5.00225101]
[1760320847191,20.8,199.97,199.91,19.48452492]
[1760320847485,20.8,199.97,199.92,8.60804971]
[1760320847700,0.67,199.96,199.9,17.50875437]
[1760320847997,0.67,199.96,199.9,26.11680408]
[1760320848199,9.27804971,199.96,199.9,26.11680408]
[1760320848700,9.27804971,199.96,199.9,17.50875437]
[1760320849104,9.27804971,199.96,199.9,26.11680408]
[1760320849304,0.67,199.96,199.9,26.11680408]
[1760320849687,9.27804971,199.96,199.9,26.11680408]
[1760320849884,8.60804971,199.99,199.93,8.60804971]
[1760320850207,20.8,200.01,199.95,8.60804971]
[1760320850208,8.60804971,200.01,199.95,8.60804971]
[1760320851103,0.67,200.02,199.96,8.60804971]
[1760320851104,9.27804971,200.02,199.96,8.60804971]
[1760320851296,0.67,200.02,199.97,8.60804971]
[1760320851497,29.40804971,200.02,199.96,8.60804971]
[1760320851806,9.27804971,200.01,199.95,10.87647521]
[1760320852110,8.60804971,200.0,199.94,8.60804971]
[1760320852289,8.60804971,200.0,199.95,10.87647521]
[1760320852488,0.67,199.99,199.93,19.48452492]
[1760320852690,8.60804971,199.98,199.92,13.61005051]
[1760320853186,9.27804971,199.99,199.93,8.60804971]
[1760320853387,9.27804971,199.99,199.94,5.00150045]
[1760320853581,0.67,199.99,199.94,5.00150045]
[1760320853991,20.8,200.02,199.94,13.60955016]
[1760320854198,29.40804971,200.02,199.96,8.60804971]
[1760320854397,20.8,200.02,199.96,8.60804971]
[1760320855108,0.09400784,200.04,200.0,8.60804971]
[1760320855312,0.09400784,200.04,200.01,8.60804971]
[1760320855492,0.09400784,200.04,200.01,4.99962716]
[1760320856610,9.30804971,200.03,199.99,5.00007717]
[1760320856805,0.09400784,200.04,199.95,23.37948728]
[1760320856806,8.60804971,200.01,199.96,5.0010002]
[1760320857006,9.30804971,200.0,199.96,5.0010002]
[1760320857312,9.30804971,199.99,199.94,5.00150045]
[1760320857700,0.7,199.99,199.94,5.00150045]
[1760320857905,0.7,199.99,199.94,23.27394739]
[1760320858310,0.09400784,200.04,199.97,5.76869582]
[1760320858489,0.79400784,200.04,199.98,5.76869582]
[1760320858686,5.76869582,200.02,199.96,5.76869582]
[1760320858911,5.79300896,200.04,199.94,5.00150045]
[1760320858912,5.76869582,200.0,199.94,5.00150045]
[1760320859410,5.76869582,199.98,199.94,5.00150045]
[1760320859595,6.46869582,199.98,199.93,5.00175061]
[1760320859795,0.7,199.98,199.93,10.77044643]
[1760320859997,6.46869582,200.02,199.94,10.87647521]
[1760320860197,0.09400784,200.04,199.98,5.76869582]
[1760320860414,5.76869582,200.03,199.95,10.87647521]
[1760320860596,0.7,200.03,199.96,5.76869582]
[1760320860792,0.7,200.03,199.97,5.76869582]
[1760320860992,5.86270366,200.04,200.02,5.76869582]
[1760320860993,0.09400784,200.04,200.02,5.76869582]
[1760320861198,0.09400784,200.04,200.01,5.76869582]
[1760320861412,0.10240814,200.02,199.99,0.500025]
[1760320861599,0.10240814,200.02,200.01,10.87647521]
[1760320862492,0.09493321,200.03,200.01,16.64517103]
[1760320862793,0.0931375,200.05,200.03,10.87647521]
[1760320862999,0.09864604,200.06,200.05,16.64517103]
[1760320863311,0.7,200.15,200.06,10.87647521]
[1760320863515,0.7,200.15,200.06,16.64517103]
[1760320863718,6.46869582,200.15,200.06,21.64367147]
[1760320863923,0.7,200.15,200.06,21.64367147]
[1760320864226,6.46869582,200.15,200.06,21.64367147]
[1760320864519,0.7,200.15,200.06,34.13992259]
[1760320864721,0.7,200.15,200.11,5.76869582]
[1760320865093,5.76869582,200.18,200.12,5.76869582]
[1760320865402,0.7,200.17,200.12,5.76869582]
[1760320865587,0.7,200.16,200.13,4.99675211]
[1760320866295,0.7,200.15,200.11,4.99701724]
[1760320866902,0.7,200.14,200.11,4.99701724]
[1760320867217,0.7,200.13,200.1,4.99749762]
[1760320867409,40.89360125,200.2,200.1,10.76619344]
[1760320867410,6.46869582,200.16,200.1,10.76619344]
[1760320867605,0.7,200.16,200.12,4.99700179]
[1760320867815,0.7,200.15,200.11,5.76869582]
[1760320868007,5.76869582,200.13,200.07,5.76869582]
[1760320868319,6.46869582,200.12,200.06,5.76869582]
[1760320868500,0.7,200.12,200.07,5.76869582]
[1760320868824,5.76869582,200.14,200.08,5.76869582]
[1760320869019,0.7,200.12,200.08,5.76869582]
[1760320869201,5.76869582,200.09,200.01,4.99953004]
[1760320869401,5.76869582,200.04,199.98,5.76869582]
[1760320869609,6.46869582,200.04,199.99,5.00025001]
[1760320870418,0.7,200.03,199.99,5.00025001]
[1760320870620,0.7,200.02,199.99,5.00025001]
[1760320870921,17.49212854,200.09,199.99,5.00025001]
[1760320870922,5.76869582,200.05,199.99,5.00025001]
[1760320871108,6.46869582,200.05,199.99,10.76894583]
[1760320871923,20.8,200.11,200.01,5.76869582]
[1760320872116,6.46869582,200.09,200.03,5.76869582]
[1760320872298,0.7,200.09,200.04,5.76869582]
[1760320872805,0.7,200.08,200.04,5.76869582]
[1760320873007,4.99667255,200.14,200.04,5.76869582]
[1760320873316,0.7,200.11,200.05,5.76869582]
[1760320873513,0.32396476,200.25,200.04,5.76869582]
[1760320873514,0.7,200.22,200.04,5.76869582]
[1760320873714,0.32396476,200.25,200.05,10.87647521]
[1760320873901,0.32396476,200.25,200.17,5.76869582]
[1760320874109,0.7,200.24,200.1,10.87647521]
[1760320874408,0.7,200.22,200.07,10.87647521]
[1760320874612,0.7,200.21,200.09,10.87647521]
[1760320874921,0.1,200.23,200.11,31.67647521]
[1760320875299,0.1,200.23,200.13,10.87647521]
[1760320875495,0.1,200.23,200.14,0.49965024]
[1760320875700,0.7,200.22,200.15,10.87647521]
[1760320875910,0.1,200.23,200.21,5.76869582]
[1760320876116,0.1,200.23,200.16,4.99600319]
[1760320876508,0.32396476,200.25,200.17,0.5]
[1760320876704,0.32396476,200.25,200.14,0.4]
[1760320877008,0.32396476,200.25,200.11,14.96169966]
[1760320877009,0.32396476,200.25,200.13,0.4]
[1760320877331,0.32396476,200.25,200.14,0.4]
[1760320877511,0.32396476,200.25,200.12,10.87647521]
[1760320877720,0.32396476,200.25,200.14,10.87647521]
[1760320878015,0.32396476,200.25,200.16,10.87647521]
[1760320878219,0.32396476,200.25,200.21,5.76869582]
[1760320878414,0.32396476,200.25,200.17,0.4]
[1760320878926,0.32396476,200.25,200.23,5.76869582]
[1760320879128,0.32396476,200.25,200.24,5.76869582]
[1760320879427,0.32396476,200.25,200.24,6.16869582]
[1760320879624,0.32396476,200.25,200.24,5.76869582]
[1760320880121,0.32396476,200.25,200.24,17.04517103]
[1760320880809,0.32396476,200.25,200.2,12.48751248]
[1760320881012,0.32396476,200.25,200.21,11.27647521]
[1760320881356,0.32396476,200.25,200.24,5.76869582]
[1760320881633,0.42535168,200.25,200.24,5.76869582]
[1760320881804,0.42535168,200.25,200.24,22.53857893]
[1760320882005,0.42535168,200.25,200.24,16.76988311]
[1760320882321,0.42535168,200.25,200.23,5.76869582]
[1760320882523,0.42535168,200.25,200.24,5.76869582]
[1760320882824,0.42535168,200.25,200.23,10.87647521]
[1760320883024,1.12535168,200.25,200.2,10.7635913]
[1760320883200,0.42535168,200.25,200.21,11.27647521]
[1760320883400,0.42535168,200.25,200.24,5.76869582]
[1760320883726,0.02535168,200.25,200.24,17.54457174]
[1760320883909,0.02535168,200.25,200.24,22.53857893]
[1760320884104,0.02535168,200.25,200.24,22.13857893]
[1760320884422,0.10809663,200.29,200.25,22.41386685]
[1760320884607,0.10809663,200.29,200.28,10.87647521]
[1760320885027,0.78809663,200.29,200.16,46.56869581]
[1760320885228,0.68,200.28,200.18,10.87647521]
[1760320885437,0.10809663,200.29,200.26,5.76869582]
[1760320885612,0.10809663,200.29,200.21,10.87647521]
[1760320885613,0.68,200.28,200.16,4.99586892]
[1760320885813,0.68,200.27,200.13,4.8]
[1760320886026,0.68,200.27,200.21,5.76869582]
[1760320886201,5.76869582,200.28,200.13,4.8]
[1760320886202,5.76869582,200.22,200.13,4.8]
[1760320886414,0.68,200.21,200.13,4.8]
[1760320886729,5.76869582,200.2,200.13,4.8]
[1760320886910,5.76869582,200.16,200.13,4.8]
[1760320887115,0.68,200.15,200.13,4.8]
[1760320887314,0.68,200.14,200.13,4.8]
[1760320887716,0.68,200.18,200.13,4.8]
[1760320887922,0.68,200.17,200.13,10.56869582]
[1760320888119,4.99474318,200.22,200.13,10.56869582]
[1760320888120,4.99515523,200.2,200.13,10.56869582]
[1760320888322,4.99515523,200.2,200.13,4.08]
[1760320888323,6.44869582,200.16,200.13,4.08]
[1760320888520,0.68,200.15,200.13,4.08]
[1760320888938,5.76869582,200.17,200.13,4.08]
[1760320889233,6.44869582,200.14,200.13,4.08]
[1760320889530,20.8,200.11,199.99,0.67]
[1760320889835,5.76869582,200.07,200.0,5.76869582]
[1760320890013,5.76869582,200.06,199.96,0.67]
[1760320890214,5.76869582,200.01,199.86,0.2]
[1760320890421,0.68,200.06,199.88,0.67]
[1760320890422,20.8,200.05,199.88,0.67]
[1760320890615,6.44869582,200.04,199.98,5.76869582]
[1760320890919,5.76869582,200.01,199.94,5.76869582]
[1760320891119,0.68,200.0,199.88,0.67]
[1760320891321,0.68,200.0,199.95,5.76869582]
[1760320891621,0.68,199.99,199.94,5.76869582]
[1760320891939,6.44869582,199.98,199.87,5.00325211]
[1760320892121,0.68,199.98,199.88,0.67]
[1760320892310,5.76869582,199.96,199.9,5.76869582]
[1760320892515,0.68,199.98,199.93,5.76869582]
[1760320892813,6.44869582,199.97,199.88,0.67]
[1760320893012,0.68,200.01,199.94,5.76869582]
[1760320893214,5.76869582,200.06,199.95,0.67]
[1760320893438,6.44869582,200.05,199.95,0.67]
[1760320893651,5.76869582,200.06,199.92,10.87647521]
[1760320893814,5.76869582,199.97,199.86,11.07647521]
[1760320894014,0.68,199.98,199.87,0.67]
[1760320894251,5.76869582,199.94,199.86,5.20344181]
[1760320894536,5.76869582,199.93,199.87,5.76869582]
[1760320894737,0.68,199.94,199.88,5.76869582]
[1760320894914,5.76869582,199.96,199.9,5.76869582]
[1760320895110,5.76869582,199.95,199.89,5.76869582]
[1760320895314,0.68,200.0,199.93,5.76869582]
[1760320895538,5.76869582,199.99,199.93,5.76869582]
[1760320895721,6.44869582,199.98,199.86,17.71218475]
[1760320895926,5.76869582,199.95,199.89,5.76869582]
[1760320896360,20.8,200.01,199.88,5.76869582]
[1760320896361,0.68,199.94,199.88,5.76869582]
[1760320896542,0.68,199.94,199.89,5.76869582]
[1760320897350,5.76869582,199.92,199.86,5.20343814]
[1760320897511,5.76869582,199.91,199.86,0.2]
[1760320897836,5.76869582,199.88,199.86,0.2]
[1760320898027,5.76869582,199.87,199.86,0.2]
[1760320898338,5.94869582,199.87,199.86,0.2]
[1760320898638,5.76869582,199.87,199.86,0.2]
[1760320898946,20.8,199.92,199.86,0.2]
[1760320899117,5.76869582,199.9,199.86,0.2]
[1760320899311,25.80204726,199.92,199.86,0.2]
[1760320899934,5.76869582,199.9,199.86,0.2]
[1760320900138,5.76869582,199.88,199.86,0.2]
[1760320900355,5.76869582,199.89,199.86,0.2]
[1760320900521,5.76869582,199.88,199.86,0.2]
[1760320900838,5.76869582,199.87,199.86,0.2]
[1760320901039,5.76869582,199.88,199.86,0.2]
[1760320901425,0.10702522,199.87,199.86,0.2]
[1760320901832,5.93572104,199.87,199.86,0.2]
[1760320902150,20.8,199.84,199.71,0.67]
[1760320902323,5.76869582,199.73,199.68,0.2]
[1760320902647,5.76869582,199.71,199.68,0.2]
[1760320902943,5.76869582,199.78,199.69,0.67]
[1760320903141,5.76869582,199.8,199.69,0.67]
[1760320903345,5.76869582,199.73,199.68,0.2]
[1760320903528,0.68,199.73,199.68,0.2]
[1760320903734,20.8,199.77,199.68,0.2]
[1760320903735,6.44869582,199.72,199.68,0.2]
[1760320903929,5.00625782,199.75,199.68,0.2]
[1760320904236,5.76869582,199.69,199.68,0.2]
[1760320904431,6.47869582,199.69,199.68,0.2]
[1760320904625,0.71,199.69,199.68,0.2]
[1760320904830,27.27869582,199.69,199.68,0.2]
[1760320905048,12.24739164,199.69,199.54,5.01150937]
[1760320905245,5.76869582,199.61,199.54,5.76869582]
[1760320905436,5.76869582,199.61,199.55,5.01121424]
[1760320905645,5.76869582,199.59,199.53,4.8]
[1760320905945,5.76869582,199.58,199.53,4.8]
[1760320906121,6.47869582,199.58,199.53,4.8]
[1760320906327,0.71,199.58,199.53,4.8]
[1760320906518,6.47869582,199.58,199.47,5.01322096]
[1760320906723,0.71,199.58,199.46,0.2]
[1760320907123,6.47869582,199.58,199.48,5.76869582]
[1760320907353,6.47869582,199.58,199.46,5.90347208]
[1760320907537,6.47869582,199.58,199.46,6.65869582]
[1760320907844,6.47869582,199.58,199.46,0.89]
[1760320908046,6.47869582,199.58,199.48,5.76869582]
[1760320908231,20.8,199.59,199.54,5.01145702]
[1760320908432,25.03657202,199.71,199.47,10.87647521]
[1760320908433,20.8,199.63,199.53,6.45869582]
[1760320908643,5.76869582,199.61,199.57,5.21068614]
[1760320908937,0.71,199.65,199.57,5.21068614]
[1760320909252,0.71,199.65,199.57,0.2]
[1760320909751,5.76869582,199.63,199.57,0.2]
[1760320909931,5.00926714,199.63,199.57,0.2]
[1760320910242,5.76869582,199.58,199.57,0.2]
[1760320910746,6.47869582,199.58,199.57,0.2]
[1760320910948,20.8,199.55,199.43,0.69]
[1760320911132,20.8,199.53,199.4,0.69]
[1760320911333,5.76869582,199.47,199.4,0.69]
[1760320911543,20.8,199.5,199.41,5.76869582]
[1760320911740,5.76869582,199.47,199.4,0.69]
[1760320911934,26.56869582,199.47,199.39,0.2]
[1760320912138,0.71,199.5,199.39,0.89]
[1760320912337,5.76869582,199.49,199.41,5.01473018]
[1760320912527,5.76869582,199.49,199.42,5.76869582]
[1760320912846,0.71,199.49,199.39,6.65869582]
[1760320913053,10.87647521,199.55,199.43,5.01424448]
[1760320913054,20.8,199.47,199.43,5.01424448]
[1760320913255,20.8,199.47,199.41,0.69]
[1760320913433,5.76869582,199.47,199.41,0.69]
[1760320913932,6.47869582,199.47,199.39,0.2]
[1760320914548,12.24739164,199.47,199.39,0.2]
[1760320914748,5.76869582,199.4,199.39,0.2]
[1760320915130,20.8,199.43,199.39,0.2]
[1760320915330,3.31143536,199.4,199.39,0.2]
[1760320915631,0.69,199.4,199.39,0.2]
[1760320915832,20.8,199.37,199.36,0.2]
[1760320916037,20.8,199.33,199.28,0.2]
[1760320916443,20.8,199.32,199.28,0.2]
[1760320916651,20.8,199.34,199.28,0.2]
[1760320916845,5.76869582,199.38,199.31,5.89725871]
[1760320917048,20.8,199.36,199.32,5.76869582]
[1760320917260,20.8,199.36,199.33,0.68]
[1760320917563,2.62186297,199.4,199.33,0.68]
[1760320917728,2.62186297,199.4,199.32,5.76869582]
[1760320917934,2.62186297,199.4,199.36,5.76869582]
[1760320918251,2.62186297,199.4,199.37,5.01579976]
[1760320918455,0.56,199.46,199.34,0.68]
[1760320918643,2.62083878,199.4,199.35,5.76869582]
[1760320918957,5.01202886,199.52,199.37,10.87647521]
[1760320919261,2.62044961,199.43,199.38,0.68]
[1760320919466,5.76869582,199.5,199.38,0.68]
[1760320919642,2.6198491,199.49,199.46,8.63358761]
[1760320919846,2.6198491,199.49,199.46,9.31358761]
[1760320920043,2.6198491,199.49,199.43,0.68]
[1760320920367,2.6198491,199.49,199.47,8.63358761]
[1760320920657,29.43358761,199.55,199.48,0.68]
[1760320920837,2.61958819,199.51,199.47,8.63358761]
[1760320921036,0.56,199.58,199.48,0.68]
[1760320921037,8.63358761,199.55,199.48,0.68]
[1760320921351,0.56,199.58,199.48,0.68]
[1760320921352,0.0971295,199.49,199.48,0.68]
[1760320921653,0.0971295,199.49,199.48,9.31358761]
[1760320922048,0.0971295,199.49,199.48,14.32662149]
[1760320922471,0.0928573,199.51,199.48,37.73568142]
[1760320922644,0.0928573,199.51,199.49,0.68]
[1760320922838,0.0928573,199.51,199.5,9.31358761]
[1760320923564,0.0928573,199.51,199.48,8.63358761]
[1760320923758,0.0928573,199.51,199.42,0.68]
[1760320923957,8.72644491,199.51,199.44,8.63358761]
[1760320924163,8.63358761,199.48,199.42,0.68]
[1760320924464,20.8,199.45,199.39,8.63358761]
[1760320924661,0.0928573,199.51,199.43,8.63358761]
[1760320924865,0.0928573,199.51,199.49,8.63358761]
[1760320925036,0.0928573,199.51,199.44,10.87647521]
[1760320925037,0.0928573,199.51,199.5,9.31358761]
[1760320925237,0.0928573,199.51,199.5,0.68]
[1760320925541,0.10930946,199.55,199.51,10.87647521]
[1760320925750,8.63358761,199.52,199.43,0.68]
[1760320925949,0.69,199.51,199.3,5.01750701]
[1760320926261,0.69,199.51,199.39,5.69518451]
[1760320926262,20.8,199.46,199.39,5.69518451]
[1760320926460,0.79862897,199.54,199.4,0.68]
[1760320926652,20.8,199.48,199.43,8.63358761]
[1760320926961,8.63358761,199.45,199.37,0.68]
[1760320927162,8.63358761,199.45,199.39,8.63358761]
[1760320927557,8.63358761,199.44,199.37,9.31358761]
[1760320927862,8.63358761,199.47,199.38,0.68]
[1760320928071,20.8,199.48,199.42,5.01454217]
[1760320928258,8.63358761,199.48,199.43,0.68]
[1760320928453,8.63358761,199.5,199.44,0.68]
[1760320928648,8.63358761,199.53,199.45,8.63358761]
[1760320929173,8.63358761,199.49,199.44,0.68]
[1760320929356,8.63358761,199.46,199.39,14.3287827]
[1760320929549,8.63358761,199.44,199.37,5.01568017]
[1760320929752,0.69,199.46,199.35,5.69614648]
[1760320929962,8.63358761,199.44,199.36,8.63358761]
[1760320930268,8.63358761,199.42,199.36,0.68]
[1760320930459,8.63358761,199.43,199.36,5.69602456]
[1760320930664,8.63358761,199.42,199.36,5.69602456]
[1760320930964,17.54473907,199.49,199.31,11.07647521]
[1760320930965,8.63358761,199.37,199.31,0.2]
[1760320931146,8.63358761,199.35,199.31,0.2]
[1760320931354,8.63358761,199.32,199.31,0.2]
[1760320931661,29.43358761,199.32,199.31,0.2]
[1760320931858,20.8,199.32,199.31,0.2]
[1760320932063,0.69,199.41,199.31,0.88]
[1760320932369,20.8,199.37,199.31,0.2]
[1760320932568,8.63358761,199.32,199.31,0.2]
[1760320933078,20.8,199.29,199.28,0.2]
[1760320933577,29.43358761,199.29,199.28,0.2]
[1760320933763,30.09358761,199.29,199.28,0.2]
[1760320934268,35.11140084,199.29,199.28,0.2]
[1760320934473,20.8,199.31,199.28,0.2]
[1760320934658,9.29358761,199.29,199.28,0.2]
[1760320934975,21.46,199.29,199.28,0.2]
[1760320935180,30.09358761,199.29,199.28,0.2]
[1760320936281,35.11140084,199.29,199.28,0.2]
[1760320936576,25.81781323,199.29,199.28,0.2]
[1760320936763,34.45140084,199.29,199.28,0.2]
[1760320936956,35.11140084,199.29,199.28,0.2]
[1760320937153,45.98787605,199.29,199.28,0.2]
[1760320937367,58.53240914,199.29,199.13,0.68]
[1760320937657,8.63358761,199.2,199.14,5.02144856]
[1760320937851,8.63358761,199.2,199.09,0.68]
[1760320938052,9.29358761,199.2,199.03,8.63358761]
[1760320938259,9.29358761,199.2,198.64,87.96588696]
[1760320938260,14.31366793,199.2,199.07,0.68]
[1760320938462,20.8,199.17,199.01,8.63358761]
[1760320938666,8.63358761,199.06,199.0,0.68]
[1760320938864,20.8,199.09,199.0,0.68]
[1760320939064,8.63358761,199.1,199.01,8.63358761]
[1760320939278,29.43358761,199.12,199.05,8.63358761]
[1760320939491,20.8,199.13,199.07,8.63358761]
[1760320939693,0.66,199.22,199.09,8.63358761]
[1760320939871,10.87647521,199.26,199.12,10.87647521]
[1760320940069,8.63358761,199.14,199.1,0.68]
[1760320940369,20.8,199.17,199.11,0.68]
[1760320940561,8.63358761,199.18,199.11,5.70223392]
[1760320940763,8.63358761,199.19,199.12,0.68]
[1760320941179,10.87647521,199.25,199.12,0.68]
[1760320941397,0.10746512,199.13,199.11,5.02223392]
[1760320941579,0.10746512,199.13,199.11,5.70223392]
[1760320941883,0.10746512,199.13,199.12,0.68]
[1760320942259,20.8,199.12,199.04,0.68]
[1760320942469,8.63358761,199.1,199.04,0.68]
[1760320942684,0.10746512,199.13,199.04,0.68]
[1760320942990,20.8,199.01,198.9,0.68]
[1760320943176,8.63358761,198.98,198.91,8.63358761]
[1760320943503,8.63358761,199.0,198.93,8.63358761]
[1760320943661,20.8,198.99,198.94,0.68]
[1760320943985,0.76746512,199.13,198.98,10.87647521]
[1760320944175,20.8,199.07,199.01,8.63358761]
[1760320944499,20.8,199.07,199.02,5.70462064]
[1760320944679,0.10746512,199.13,199.05,8.63358761]
[1760320944987,0.10746512,199.13,199.06,9.30358761]
[1760320945162,0.10746512,199.13,199.08,8.63358761]
[1760320945366,20.90746512,199.13,199.08,8.63358761]
[1760320945568,20.90746512,199.13,199.09,0.67]
[1760320945775,20.90746512,199.13,199.03,10.87647521]
[1760320946076,20.90746512,199.13,199.02,17.58617224]
[1760320946077,20.8,199.11,199.08,8.63358761]
[1760320946263,20.8,199.11,199.08,9.30358761]
[1760320946461,20.8,199.12,199.04,5.69388277]
[1760320946664,29.43358761,199.12,199.04,0.67]
[1760320946883,20.8,199.11,199.06,8.63358761]
[1760320947183,0.10746512,199.13,199.08,8.63358761]
[1760320947566,0.10746512,199.13,199.09,11.33425481]
[1760320947881,0.10746512,199.13,199.08,10.66425481]
[1760320948085,31.46425481,199.12,199.05,10.66425481]
[1760320948384,20.8,199.12,199.07,5.02335861]
[1760320948580,20.8,199.12,199.08,0.67]
[1760320949169,0.10746512,199.13,199.11,10.66425481]
[1760320949489,0.10746512,199.13,199.11,11.33425481]
[1760320949786,0.10746512,199.13,199.06,17.58259298]
[1760320950085,20.8,199.09,199.01,10.66425481]
[1760320950263,20.8,199.09,199.0,0.67]
[1760320950264,10.66425481,199.05,199.0,0.67]
[1760320950463,31.46425481,199.06,199.0,0.67]
[1760320950781,10.66425481,199.04,198.97,10.66425481]
[1760320950985,20.8,199.05,198.99,10.66425481]
[1760320951189,20.8,199.05,198.98,0.67]
[1760320951401,20.8,199.07,198.98,0.67]
[1760320951686,10.66425481,199.06,198.99,10.66425481]
[1760320951873,10.66425481,199.06,198.98,0.67]
[1760320952070,10.66425481,199.06,199.0,10.66425481]
[1760320952071,20.8,199.05,199.0,10.66425481]
[1760320952271,10.66425481,199.06,199.01,0.67]
[1760320952590,10.66425481,199.02,198.89,10.87647521]
[1760320952806,10.66425481,198.98,198.91,0.87]